[Event "Titled Tuesday Blitz January 03 Late 2023"]
[White "Deac, Bogdan-Daniel"]
[Black "Kobalia, Mikhail"]
[WhiteFideId "1226380"]
[BlackFideId "4119150"]
[WhiteElo "2700"]
[BlackElo "2578"]
[Result "0-1"]
[Round "07"]
[TimeControl "180+2"]
[Date "2023.01.03"]
[WhiteClock "0:01:01"]
[BlackClock "0:00:16"]

1. e4 {[%clk 0:03:00]}  c5 {[%clk 0:02:59]} 2. Nf3 {[%clk 0:03:01]}  e6 {[%clk 0:03:00]} 3. g3 {[%clk 0:03:01]}  Nc6 {[%clk 0:02:59]} 4. Bg2 {[%clk 0:03:01]}  Nf6 {[%clk 0:02:59]} 5. Qe2 {[%clk 0:03:02]}  e5 {[%clk 0:02:59]} 6. Nc3 {[%clk 0:03:01]}  Be7 {[%clk 0:02:59]} 7. Nd5 {[%clk 0:03:01]}  O-O {[%clk 0:02:59]} 8. c3 {[%clk 0:03:00]}  d6 {[%clk 0:02:59]} 9. Nxe7+ {[%clk 0:02:59]}  Qxe7 {[%clk 0:02:58]} 10. d3 {[%clk 0:03:00]}  h6 {[%clk 0:02:55]} 11. Nd2 {[%clk 0:02:59]}  Rd8 {[%clk 0:02:33]} 12. f4 {[%clk 0:02:54]}  d5 {[%clk 0:02:07]} 13. O-O {[%clk 0:02:53]}  dxe4 {[%clk 0:02:06]} 14. dxe4 {[%clk 0:02:52]}  b6 {[%clk 0:02:01]} 15. h3 {[%clk 0:02:37]}  a5 {[%clk 0:01:59]} 16. Qf2 {[%clk 0:02:34]}  a4 {[%clk 0:01:58]} 17. a3 {[%clk 0:02:32]}  Ba6 {[%clk 0:01:57]} 18. Re1 {[%clk 0:02:32]}  Rd7 {[%clk 0:01:49]} 19. f5 {[%clk 0:02:29]}  Rad8 {[%clk 0:01:48]} 20. g4 {[%clk 0:02:29]}  Na5 {[%clk 0:01:46]} 21. Bf3 {[%clk 0:02:17]}  Rd6 {[%clk 0:01:45]} 22. Nf1 {[%clk 0:02:12]}  Nb3 {[%clk 0:01:43]} 23. Ra2 {[%clk 0:02:12]}  Bxf1 {[%clk 0:01:28]} 24. Qxf1 {[%clk 0:01:53]}  Rd3 {[%clk 0:01:18]} 25. Be3 {[%clk 0:01:48]}  b5 {[%clk 0:01:07]} 26. Qe2 {[%clk 0:01:40]}  c4 {[%clk 0:01:07]} 27. Qf2 {[%clk 0:01:32]}  Nd7 {[%clk 0:00:49]} 28. h4 {[%clk 0:01:27]}  Ndc5 {[%clk 0:00:41]} 29. g5 {[%clk 0:01:24]}  hxg5 {[%clk 0:00:36]} 30. hxg5 {[%clk 0:01:25]}  Rxe3 {[%clk 0:00:36]} 31. Qxe3 {[%clk 0:01:21]}  Rd3 {[%clk 0:00:35]} 32. f6 {[%clk 0:01:21]}  gxf6 {[%clk 0:00:30]} 33. Qf2 {[%clk 0:01:21]}  fxg5 {[%clk 0:00:27]} 34. Bh5 {[%clk 0:01:22]}  Ne6 {[%clk 0:00:24]} 35. Be2 {[%clk 0:01:15]}  Nf4 {[%clk 0:00:23]} 36. Bf1 {[%clk 0:01:12]}  Qe6 {[%clk 0:00:23]} 37. Re3 {[%clk 0:01:10]}  Qg4+ {[%clk 0:00:23]} 38. Kh1 {[%clk 0:01:09]}  Rd2 {[%clk 0:00:22]} 39. Qg3 {[%clk 0:01:08]}  Qh5+ {[%clk 0:00:18]} 40. Kg1 {[%clk 0:01:06]}  Nc1 {[%clk 0:00:17]} 41. Qe1 {[%clk 0:01:01]}  Qh2# {[%clk 0:00:16]} 0-1


[Site "https://www.chess.com"]

[Event "Titled Tuesday Blitz January 03 Late 2023"]
[White "Xiong, Jeffery"]
[Black "Yuan, Qingyu"]
[WhiteFideId "2047640"]
[BlackFideId "8609772"]
[WhiteElo "2692"]
[BlackElo "2373"]
[Result "1-0"]
[Round "07"]
[TimeControl "180+2"]
[Date "2023.01.03"]
[WhiteClock "0:01:06"]
[BlackClock "0:00:02"]

1. d4 {[%clk 0:03:00]}  d5 {[%clk 0:02:59]} 2. Nf3 {[%clk 0:03:01]}  Nf6 {[%clk 0:03:00]} 3. Bf4 {[%clk 0:03:01]}  c5 {[%clk 0:02:58]} 4. e3 {[%clk 0:03:01]}  Nc6 {[%clk 0:02:58]} 5. Nbd2 {[%clk 0:03:01]}  cxd4 {[%clk 0:02:57]} 6. exd4 {[%clk 0:03:02]}  Bg4 {[%clk 0:02:50]} 7. c3 {[%clk 0:03:01]}  e6 {[%clk 0:02:48]} 8. Qb3 {[%clk 0:03:01]}  Qc8 {[%clk 0:02:48]} 9. h3 {[%clk 0:03:02]}  Bxf3 {[%clk 0:02:41]} 10. Nxf3 {[%clk 0:03:02]}  Be7 {[%clk 0:02:40]} 11. Bd3 {[%clk 0:02:52]}  O-O {[%clk 0:02:40]} 12. O-O {[%clk 0:02:53]}  a6 {[%clk 0:02:34]} 13. a4 {[%clk 0:02:53]}  Na5 {[%clk 0:02:32]} 14. Qc2 {[%clk 0:02:53]}  Nc4 {[%clk 0:02:28]} 15. Ne5 {[%clk 0:02:48]}  g6 {[%clk 0:02:09]} 16. Bxc4 {[%clk 0:02:45]}  dxc4 {[%clk 0:02:10]} 17. a5 {[%clk 0:02:46]}  Nd5 {[%clk 0:02:03]} 18. Bh6 {[%clk 0:02:46]}  Rd8 {[%clk 0:01:57]} 19. Qe2 {[%clk 0:02:46]}  b5 {[%clk 0:01:40]} 20. axb6 {[%clk 0:02:46]}  Nxb6 {[%clk 0:01:40]} 21. Qf3 {[%clk 0:02:47]}  f6 {[%clk 0:01:34]} 22. Nc6 {[%clk 0:02:46]}  Re8 {[%clk 0:01:10]} 23. Nxe7+ {[%clk 0:02:47]}  Rxe7 {[%clk 0:01:11]} 24. Qxf6 {[%clk 0:02:47]}  Nd5 {[%clk 0:01:08]} 25. Qe5 {[%clk 0:02:43]}  Qc7 {[%clk 0:00:42]} 26. Qe2 {[%clk 0:02:36]}  Qc6 {[%clk 0:00:32]} 27. Ra5 {[%clk 0:02:33]}  Nb6 {[%clk 0:00:24]} 28. Rfa1 {[%clk 0:02:30]}  Qb7 {[%clk 0:00:24]} 29. Re5 {[%clk 0:02:23]}  Rae8 {[%clk 0:00:23]} 30. Rea5 {[%clk 0:02:22]}  Ra8 {[%clk 0:00:23]} 31. Re5 {[%clk 0:02:19]}  Rae8 {[%clk 0:00:23]} 32. Bg5 {[%clk 0:02:20]}  Rf7 {[%clk 0:00:19]} 33. Rxe6 {[%clk 0:02:20]}  Ref8 {[%clk 0:00:14]} 34. f3 {[%clk 0:02:12]}  Nd5 {[%clk 0:00:14]} 35. Raxa6 {[%clk 0:01:59]}  Qb3 {[%clk 0:00:07]} 36. Kh2 {[%clk 0:01:47]}  Qb8+ {[%clk 0:00:07]} 37. Qe5 {[%clk 0:01:47]}  Qxe5+ {[%clk 0:00:07]} 38. Rxe5 {[%clk 0:01:47]}  Rf5 {[%clk 0:00:04]} 39. Rxf5 {[%clk 0:01:31]}  Rxf5 {[%clk 0:00:04]} 40. h4 {[%clk 0:01:27]}  Rf8 {[%clk 0:00:02]} 41. Rc6 {[%clk 0:01:26]}  Rb8 {[%clk 0:00:02]} 42. Bc1 {[%clk 0:01:26]}  Re8 {[%clk 0:00:01]} 43. Rxc4 {[%clk 0:01:25]}  Re1 {[%clk 0:00:01]} 44. Bh6 {[%clk 0:01:24]}  Re2 {[%clk 0:00:01]} 45. Rc5 {[%clk 0:01:22]}  Nf6 {[%clk 0:00:01]} 46. b4 {[%clk 0:01:21]}  Kf7 {[%clk 0:00:01]} 47. b5 {[%clk 0:01:22]}  Ng8 {[%clk 0:00:01]} 48. Bg5 {[%clk 0:01:21]}  h6 {[%clk 0:00:02]} 49. Rc7+ {[%clk 0:01:20]}  Ke6 {[%clk 0:00:02]} 50. Rg7 {[%clk 0:01:13]}  hxg5 {[%clk 0:00:02]} 51. Rxg8 {[%clk 0:01:13]}  gxh4 {[%clk 0:00:02]} 52. Rxg6+ {[%clk 0:01:12]}  Kd5 {[%clk 0:00:02]} 53. Rg5+ {[%clk 0:01:09]}  Kc4 {[%clk 0:00:02]} 54. Rc5+ {[%clk 0:01:08]}  Kd3 {[%clk 0:00:02]} 55. Kh3 {[%clk 0:01:09]}  Kd2 {[%clk 0:00:02]} 56. b6 {[%clk 0:01:08]}  Ke1 {[%clk 0:00:02]} 57. Re5 {[%clk 0:01:06]} 1-0


[Site "https://www.chess.com"]

[Event "Titled Tuesday Blitz January 03 Late 2023"]
[White "Kuznetsov, Felix"]
[Black "Tari, Aryan"]
[WhiteFideId "34147990"]
[BlackFideId "1510045"]
[WhiteElo "2254"]
[BlackElo "2642"]
[Result "1-0"]
[Round "07"]
[TimeControl "180+2"]
[Date "2023.01.03"]
[WhiteClock "0:00:33"]
[BlackClock "0:01:08"]

1. e4 {[%clk 0:03:00]}  c6 {[%clk 0:02:58]} 2. d4 {[%clk 0:03:00]}  d5 {[%clk 0:02:59]} 3. exd5 {[%clk 0:03:01]}  cxd5 {[%clk 0:02:59]} 4. Bd3 {[%clk 0:03:01]}  Nf6 {[%clk 0:02:59]} 5. c3 {[%clk 0:03:02]}  Bg4 {[%clk 0:02:58]} 6. Qb3 {[%clk 0:03:01]}  Qc7 {[%clk 0:02:58]} 7. f3 {[%clk 0:02:46]}  Bd7 {[%clk 0:02:35]} 8. Ne2 {[%clk 0:02:46]}  e6 {[%clk 0:02:25]} 9. Bf4 {[%clk 0:02:46]}  Qc8 {[%clk 0:02:25]} 10. Nd2 {[%clk 0:02:46]}  Be7 {[%clk 0:02:24]} 11. Rc1 {[%clk 0:02:44]}  O-O {[%clk 0:02:23]} 12. O-O {[%clk 0:02:38]}  Nc6 {[%clk 0:02:21]} 13. Rfe1 {[%clk 0:02:29]}  a6 {[%clk 0:02:21]} 14. Ng3 {[%clk 0:02:23]}  Re8 {[%clk 0:02:17]} 15. Qd1 {[%clk 0:02:16]}  b5 {[%clk 0:02:16]} 16. Qe2 {[%clk 0:02:16]}  Qb7 {[%clk 0:02:07]} 17. b4 {[%clk 0:02:10]}  Bd8 {[%clk 0:01:47]} 18. Nb3 {[%clk 0:02:08]}  Bb6 {[%clk 0:01:46]} 19. Nc5 {[%clk 0:01:47]}  Bxc5 {[%clk 0:01:44]} 20. bxc5 {[%clk 0:01:48]}  Na5 {[%clk 0:01:43]} 21. Be5 {[%clk 0:01:44]}  Bc6 {[%clk 0:01:36]} 22. Bxf6 {[%clk 0:01:42]}  gxf6 {[%clk 0:01:37]} 23. Nh5 {[%clk 0:01:33]}  Qe7 {[%clk 0:01:37]} 24. Qe3 {[%clk 0:01:29]}  Qf8 {[%clk 0:01:34]} 25. Nxf6+ {[%clk 0:01:28]}  Kh8 {[%clk 0:01:34]} 26. Qe5 {[%clk 0:01:14]}  Rec8 {[%clk 0:01:24]} 27. Nxh7+ {[%clk 0:01:00]}  Qg7 {[%clk 0:01:24]} 28. Qh5 {[%clk 0:01:00]}  Kg8 {[%clk 0:01:21]} 29. Re5 {[%clk 0:01:01]}  f6 {[%clk 0:01:21]} 30. Rxe6 {[%clk 0:00:45]}  Be8 {[%clk 0:01:21]} 31. Qh4 {[%clk 0:00:40]}  Rc6 {[%clk 0:01:09]} 32. Nxf6+ {[%clk 0:00:38]}  Kf8 {[%clk 0:01:09]} 33. Rxe8+ {[%clk 0:00:33]}  Rxe8 {[%clk 0:01:09]} 34. Nxe8 {[%clk 0:00:34]}  Kxe8 {[%clk 0:01:08]} 35. Re1+ {[%clk 0:00:34]}  Kd7 {[%clk 0:01:08]} 36. Bf5+ {[%clk 0:00:33]} 1-0


[Site "https://www.chess.com"]

[Event "Titled Tuesday Blitz January 03 Late 2023"]
[White "Lenderman, Aleksandr"]
[Black "Salimova, Nurgyul"]
[WhiteFideId "2021285"]
[BlackFideId "2915138"]
[WhiteElo "2572"]
[BlackElo "2391"]
[Result "1-0"]
[Round "07"]
[TimeControl "180+2"]
[Date "2023.01.03"]
[WhiteClock "0:01:03"]
[BlackClock "0:00:04"]

1. Nf3 {[%clk 0:03:00]}  d5 {[%clk 0:02:59]} 2. e3 {[%clk 0:03:00]}  Nf6 {[%clk 0:02:59]} 3. c4 {[%clk 0:03:00]}  c6 {[%clk 0:02:58]} 4. Nc3 {[%clk 0:03:00]}  g6 {[%clk 0:02:51]} 5. d4 {[%clk 0:02:59]}  Bg7 {[%clk 0:02:51]} 6. Be2 {[%clk 0:02:59]}  O-O {[%clk 0:02:51]} 7. O-O {[%clk 0:02:59]}  Bg4 {[%clk 0:02:23]} 8. cxd5 {[%clk 0:02:59]}  Nxd5 {[%clk 0:02:23]} 9. Qb3 {[%clk 0:02:58]}  Nb6 {[%clk 0:02:21]} 10. Rd1 {[%clk 0:02:55]}  N8d7 {[%clk 0:02:20]} 11. e4 {[%clk 0:02:53]}  Qc7 {[%clk 0:02:18]} 12. Be3 {[%clk 0:02:52]}  Rad8 {[%clk 0:02:07]} 13. Rac1 {[%clk 0:02:51]}  Qb8 {[%clk 0:02:04]} 14. a4 {[%clk 0:02:49]}  Nc8 {[%clk 0:01:46]} 15. h3 {[%clk 0:02:46]}  Bxf3 {[%clk 0:01:43]} 16. Bxf3 {[%clk 0:02:47]}  Nd6 {[%clk 0:01:34]} 17. Be2 {[%clk 0:02:46]}  e5 {[%clk 0:01:30]} 18. d5 {[%clk 0:02:19]}  c5 {[%clk 0:01:30]} 19. a5 {[%clk 0:02:19]}  f5 {[%clk 0:01:26]} 20. f3 {[%clk 0:02:15]}  Rc8 {[%clk 0:01:10]} 21. Nb5 {[%clk 0:02:13]}  b6 {[%clk 0:00:53]} 22. Nxd6 {[%clk 0:02:08]}  Qxd6 {[%clk 0:00:54]} 23. Bb5 {[%clk 0:02:08]}  Nf6 {[%clk 0:00:52]} 24. axb6 {[%clk 0:02:04]}  axb6 {[%clk 0:00:52]} 25. Bd3 {[%clk 0:01:58]}  f4 {[%clk 0:00:50]} 26. Bf2 {[%clk 0:01:57]}  g5 {[%clk 0:00:51]} 27. Ra1 {[%clk 0:01:54]}  h5 {[%clk 0:00:50]} 28. Ra6 {[%clk 0:01:54]}  Rb8 {[%clk 0:00:50]} 29. Kf1 {[%clk 0:01:21]}  g4 {[%clk 0:00:50]} 30. hxg4 {[%clk 0:01:21]}  hxg4 {[%clk 0:00:50]} 31. Ke2 {[%clk 0:01:22]}  Ne8 {[%clk 0:00:39]} 32. Qb5 {[%clk 0:01:18]}  Nc7 {[%clk 0:00:38]} 33. Qc6 {[%clk 0:01:16]}  Qxc6 {[%clk 0:00:30]} 34. dxc6 {[%clk 0:01:17]}  Nxa6 {[%clk 0:00:29]} 35. Bxa6 {[%clk 0:01:18]}  Rf7 {[%clk 0:00:27]} 36. Bh4 {[%clk 0:01:18]}  Rc7 {[%clk 0:00:23]} 37. Bb5 {[%clk 0:01:10]}  Ra8 {[%clk 0:00:20]} 38. Rd7 {[%clk 0:01:08]}  Rcc8 {[%clk 0:00:12]} 39. fxg4 {[%clk 0:01:04]}  Bf8 {[%clk 0:00:06]} 40. Bc4+ {[%clk 0:01:03]}  Kh8 {[%clk 0:00:05]} 41. Bf6+ {[%clk 0:01:03]}  Bg7 {[%clk 0:00:04]} 42. Rxg7 {[%clk 0:01:03]} 1-0


[Site "https://www.chess.com"]

[Event "Titled Tuesday Blitz January 03 Late 2023"]
[White "Morefield, Jason"]
[Black "Holt, Conrad"]
[WhiteFideId "30920825"]
[BlackFideId "2034387"]
[WhiteElo "2167"]
[BlackElo "2540"]
[Result "0-1"]
[Round "07"]
[TimeControl "180+2"]
[Date "2023.01.03"]
[WhiteClock "0:00:02"]
[BlackClock "0:00:18"]

1. e4 {[%clk 0:03:00]}  e6 {[%clk 0:03:00]} 2. d4 {[%clk 0:02:59]}  d5 {[%clk 0:03:00]} 3. Nc3 {[%clk 0:03:00]}  Nf6 {[%clk 0:02:59]} 4. e5 {[%clk 0:02:58]}  Nfd7 {[%clk 0:02:59]} 5. f4 {[%clk 0:02:58]}  c5 {[%clk 0:03:00]} 6. Nf3 {[%clk 0:02:59]}  Nc6 {[%clk 0:03:00]} 7. Be3 {[%clk 0:03:00]}  cxd4 {[%clk 0:02:57]} 8. Nxd4 {[%clk 0:03:00]}  Bc5 {[%clk 0:02:57]} 9. Qd2 {[%clk 0:02:59]}  O-O {[%clk 0:02:58]} 10. O-O-O {[%clk 0:02:59]}  a6 {[%clk 0:02:58]} 11. h4 {[%clk 0:02:57]}  Nxd4 {[%clk 0:02:56]} 12. Bxd4 {[%clk 0:02:58]}  b5 {[%clk 0:02:57]} 13. h5 {[%clk 0:02:54]}  b4 {[%clk 0:02:57]} 14. Ne2 {[%clk 0:02:54]}  a5 {[%clk 0:02:57]} 15. Qe3 {[%clk 0:02:48]}  Qb6 {[%clk 0:02:54]} 16. Bxc5 {[%clk 0:02:26]}  Nxc5 {[%clk 0:02:54]} 17. Nd4 {[%clk 0:02:26]}  a4 {[%clk 0:02:53]} 18. Bd3 {[%clk 0:02:12]}  b3 {[%clk 0:02:48]} 19. cxb3 {[%clk 0:01:57]}  axb3 {[%clk 0:02:45]} 20. a3 {[%clk 0:01:58]}  Ra4 {[%clk 0:02:36]} 21. Kb1 {[%clk 0:01:40]}  Ba6 {[%clk 0:02:21]} 22. Bxa6 {[%clk 0:01:36]}  Qxa6 {[%clk 0:02:21]} 23. h6 {[%clk 0:01:11]}  g6 {[%clk 0:02:03]} 24. Nf3 {[%clk 0:00:47]}  Ne4 {[%clk 0:01:47]} 25. Rc1 {[%clk 0:00:44]}  Rb8 {[%clk 0:01:26]} 26. Rc7 {[%clk 0:00:32]}  Rxa3 {[%clk 0:01:18]} 27. bxa3 {[%clk 0:00:30]}  Qxa3 {[%clk 0:01:18]} 28. Ra7 {[%clk 0:00:17]}  Nc3+ {[%clk 0:01:07]} 29. Qxc3 {[%clk 0:00:17]}  Qxa7 {[%clk 0:01:07]} 30. Qb2 {[%clk 0:00:12]}  Qe3 {[%clk 0:01:06]} 31. Qd2 {[%clk 0:00:04]}  Qa7 {[%clk 0:00:52]} 32. Rc1 {[%clk 0:00:03]}  b2 {[%clk 0:00:50]} 33. Qxb2 {[%clk 0:00:02]}  Rxb2+ {[%clk 0:00:45]} 34. Kxb2 {[%clk 0:00:02]}  Qb6+ {[%clk 0:00:41]} 35. Ka2 {[%clk 0:00:03]}  Qa6+ {[%clk 0:00:40]} 36. Kb2 {[%clk 0:00:03]}  Kf8 {[%clk 0:00:37]} 37. Rc2 {[%clk 0:00:02]}  Qb5+ {[%clk 0:00:35]} 38. Kc1 {[%clk 0:00:01]}  Qf1+ {[%clk 0:00:34]} 39. Kb2 {[%clk 0:00:02]}  Qb5+ {[%clk 0:00:33]} 40. Kc1 {[%clk 0:00:02]}  Ke7 {[%clk 0:00:27]} 41. Ng5 {[%clk 0:00:02]}  Qf1+ {[%clk 0:00:23]} 42. Kb2 {[%clk 0:00:03]}  Qxf4 {[%clk 0:00:22]} 43. Nxh7 {[%clk 0:00:03]}  Qxe5+ {[%clk 0:00:21]} 44. Kc1 {[%clk 0:00:03]}  d4 {[%clk 0:00:19]} 45. Rc8 {[%clk 0:00:02]}  Qe3+ {[%clk 0:00:18]} 46. Kc2 {[%clk 0:00:02]}  Qxh6 {[%clk 0:00:18]} 0-1


[Site "https://www.chess.com"]

[Event "Titled Tuesday Blitz January 03 Late 2023"]
[White "Naroditsky, Daniel"]
[Black "Indjic, Aleksandar"]
[WhiteFideId "2026961"]
[BlackFideId "911925"]
[WhiteElo "2618"]
[BlackElo "2618"]
[Result "1-0"]
[Round "07"]
[TimeControl "180+2"]
[Date "2023.01.03"]
[WhiteClock "0:01:14"]
[BlackClock "0:00:12"]

1. e4 {[%clk 0:03:00]}  c5 {[%clk 0:03:00]} 2. Nf3 {[%clk 0:02:59]}  d6 {[%clk 0:03:00]} 3. Bb5+ {[%clk 0:02:59]}  Nd7 {[%clk 0:02:59]} 4. O-O {[%clk 0:02:59]}  a6 {[%clk 0:02:59]} 5. Bd3 {[%clk 0:02:59]}  e6 {[%clk 0:02:57]} 6. Re1 {[%clk 0:03:00]}  g5 {[%clk 0:02:56]} 7. Rf1 {[%clk 0:02:48]}  g4 {[%clk 0:02:55]} 8. Ne1 {[%clk 0:02:48]}  h5 {[%clk 0:02:55]} 9. f4 {[%clk 0:02:46]}  b5 {[%clk 0:02:52]} 10. c4 {[%clk 0:02:43]}  Bb7 {[%clk 0:02:46]} 11. cxb5 {[%clk 0:02:42]}  axb5 {[%clk 0:02:45]} 12. Bxb5 {[%clk 0:02:43]}  Bxe4 {[%clk 0:02:41]} 13. Nc3 {[%clk 0:02:44]}  Bb7 {[%clk 0:02:34]} 14. d4 {[%clk 0:02:45]}  cxd4 {[%clk 0:02:28]} 15. Qxd4 {[%clk 0:02:45]}  Nf6 {[%clk 0:02:27]} 16. Nd3 {[%clk 0:02:46]}  Be7 {[%clk 0:02:24]} 17. a4 {[%clk 0:02:44]}  Kf8 {[%clk 0:02:21]} 18. Be3 {[%clk 0:02:44]}  h4 {[%clk 0:02:19]} 19. a5 {[%clk 0:02:44]}  h3 {[%clk 0:02:12]} 20. g3 {[%clk 0:02:44]}  Rh5 {[%clk 0:01:19]} 21. a6 {[%clk 0:02:42]}  Be4 {[%clk 0:01:09]} 22. Bxd7 {[%clk 0:02:30]}  Bxd3 {[%clk 0:01:09]} 23. Qxd3 {[%clk 0:02:31]}  Qxd7 {[%clk 0:01:09]} 24. b4 {[%clk 0:02:30]}  Qc6 {[%clk 0:01:08]} 25. Rf2 {[%clk 0:02:29]}  Nd7 {[%clk 0:01:01]} 26. b5 {[%clk 0:02:28]}  Qc7 {[%clk 0:01:01]} 27. Rc1 {[%clk 0:02:23]}  Qa5 {[%clk 0:01:00]} 28. Rfc2 {[%clk 0:02:16]}  Nc5 {[%clk 0:00:58]} 29. Qe2 {[%clk 0:02:12]}  Bf6 {[%clk 0:00:40]} 30. Qxg4 {[%clk 0:01:58]}  Rh7 {[%clk 0:00:39]} 31. Qe2 {[%clk 0:01:54]}  Kg7 {[%clk 0:00:36]} 32. Qc4 {[%clk 0:01:44]}  Rh5 {[%clk 0:00:33]} 33. Rb1 {[%clk 0:01:42]}  Rc8 {[%clk 0:00:23]} 34. g4 {[%clk 0:01:35]}  Rh4 {[%clk 0:00:23]} 35. g5 {[%clk 0:01:35]}  Rg4+ {[%clk 0:00:21]} 36. Kf1 {[%clk 0:01:35]}  Be5 {[%clk 0:00:22]} 37. b6 {[%clk 0:01:33]}  d5 {[%clk 0:00:13]} 38. Qb5 {[%clk 0:01:14]}  Bxc3 {[%clk 0:00:12]} 39. Qxa5 {[%clk 0:01:13]}  Bxa5 {[%clk 0:00:13]} 40. b7 {[%clk 0:01:14]}  Nxb7 {[%clk 0:00:12]} 41. Rxc8 {[%clk 0:01:14]} 1-0


[Site "https://www.chess.com"]

[Event "Titled Tuesday Blitz January 03 Late 2023"]
[White "Oparin, Grigoriy"]
[Black "Rustemov, Alexander"]
[WhiteFideId "24125890"]
[BlackFideId "4119002"]
[WhiteElo "2667"]
[BlackElo "2525"]
[Result "1-0"]
[Round "07"]
[TimeControl "180+2"]
[Date "2023.01.03"]
[WhiteClock "0:00:38"]
[BlackClock "0:01:03"]

1. b3 {[%clk 0:03:00]}  d5 {[%clk 0:02:59]} 2. Bb2 {[%clk 0:03:01]}  Nf6 {[%clk 0:03:00]} 3. g3 {[%clk 0:02:58]}  c5 {[%clk 0:02:58]} 4. Bg2 {[%clk 0:02:58]}  Nc6 {[%clk 0:02:59]} 5. Nf3 {[%clk 0:02:57]}  g6 {[%clk 0:02:46]} 6. O-O {[%clk 0:02:56]}  Bg7 {[%clk 0:02:46]} 7. d4 {[%clk 0:02:57]}  O-O {[%clk 0:02:42]} 8. dxc5 {[%clk 0:02:50]}  Qa5 {[%clk 0:02:37]} 9. Nbd2 {[%clk 0:02:25]}  Qxc5 {[%clk 0:02:36]} 10. e3 {[%clk 0:02:25]}  Bf5 {[%clk 0:02:32]} 11. c4 {[%clk 0:02:23]}  Bd3 {[%clk 0:02:27]} 12. Re1 {[%clk 0:02:23]}  dxc4 {[%clk 0:02:26]} 13. Nxc4 {[%clk 0:02:20]}  Rfd8 {[%clk 0:02:24]} 14. Nd4 {[%clk 0:02:17]}  Be4 {[%clk 0:02:17]} 15. Qe2 {[%clk 0:02:08]}  Bxg2 {[%clk 0:02:16]} 16. Kxg2 {[%clk 0:02:09]}  Nxd4 {[%clk 0:02:11]} 17. Bxd4 {[%clk 0:02:09]}  Qc6+ {[%clk 0:01:47]} 18. Qf3 {[%clk 0:02:08]}  Qa6 {[%clk 0:01:38]} 19. Red1 {[%clk 0:01:57]}  Rac8 {[%clk 0:01:36]} 20. Rac1 {[%clk 0:01:53]}  h5 {[%clk 0:01:32]} 21. h3 {[%clk 0:01:47]}  b6 {[%clk 0:01:29]} 22. Ne5 {[%clk 0:01:34]}  Qxa2 {[%clk 0:01:23]} 23. Nc6 {[%clk 0:01:32]}  Rxc6 {[%clk 0:01:18]} 24. Rxc6 {[%clk 0:01:27]}  Qxb3 {[%clk 0:01:16]} 25. Ra1 {[%clk 0:01:23]}  Rd7 {[%clk 0:01:13]} 26. g4 {[%clk 0:00:57]}  hxg4 {[%clk 0:01:11]} 27. hxg4 {[%clk 0:00:58]}  Qb5 {[%clk 0:01:11]} 28. Rc8+ {[%clk 0:00:57]}  Bf8 {[%clk 0:01:06]} 29. Rh1 {[%clk 0:00:43]}  Qg5 {[%clk 0:01:03]} 30. Qh3 {[%clk 0:00:38]} 1-0


[Site "https://www.chess.com"]

[Event "Titled Tuesday Blitz January 03 Late 2023"]
[White "Timmermans, Mark"]
[Black "Terry, Renato"]
[WhiteFideId "1026399"]
[BlackFideId "3803457"]
[WhiteElo "2392"]
[BlackElo "2520"]
[Result "1-0"]
[Round "07"]
[TimeControl "180+2"]
[Date "2023.01.03"]
[WhiteClock "0:00:09"]
[BlackClock "0:00:01"]

1. e4 {[%clk 0:02:58]}  e6 {[%clk 0:03:00]} 2. d4 {[%clk 0:02:56]}  d5 {[%clk 0:03:00]} 3. Nd2 {[%clk 0:02:56]}  Be7 {[%clk 0:03:00]} 4. c3 {[%clk 0:02:55]}  c5 {[%clk 0:03:00]} 5. dxc5 {[%clk 0:02:41]}  Bxc5 {[%clk 0:03:01]} 6. Ngf3 {[%clk 0:02:40]}  Qb6 {[%clk 0:02:52]} 7. Qe2 {[%clk 0:02:28]}  Nf6 {[%clk 0:02:52]} 8. exd5 {[%clk 0:01:55]}  O-O {[%clk 0:02:52]} 9. Nc4 {[%clk 0:01:54]}  Qd8 {[%clk 0:02:50]} 10. d6 {[%clk 0:01:53]}  b5 {[%clk 0:02:48]} 11. Nce5 {[%clk 0:01:51]}  a6 {[%clk 0:02:48]} 12. g3 {[%clk 0:01:47]}  Bb7 {[%clk 0:02:44]} 13. Bg2 {[%clk 0:01:48]}  Qxd6 {[%clk 0:02:43]} 14. O-O {[%clk 0:01:46]}  Qb6 {[%clk 0:02:38]} 15. b4 {[%clk 0:01:44]}  Bd6 {[%clk 0:02:36]} 16. Be3 {[%clk 0:01:42]}  Qc7 {[%clk 0:02:37]} 17. Bd4 {[%clk 0:01:40]}  Ne4 {[%clk 0:02:19]} 18. c4 {[%clk 0:01:25]}  f6 {[%clk 0:02:13]} 19. Nd3 {[%clk 0:01:15]}  bxc4 {[%clk 0:02:06]} 20. Nc5 {[%clk 0:01:15]}  Bxc5 {[%clk 0:02:02]} 21. Bxc5 {[%clk 0:01:16]}  Re8 {[%clk 0:01:47]} 22. Qxc4 {[%clk 0:01:16]}  Nd7 {[%clk 0:01:47]} 23. Rac1 {[%clk 0:01:12]}  Bd5 {[%clk 0:01:46]} 24. Qd4 {[%clk 0:01:11]}  Ndxc5 {[%clk 0:01:45]} 25. bxc5 {[%clk 0:01:12]}  Rad8 {[%clk 0:01:44]} 26. Qb4 {[%clk 0:01:08]}  Rb8 {[%clk 0:01:41]} 27. Qa3 {[%clk 0:01:08]}  Rb5 {[%clk 0:01:35]} 28. Nd4 {[%clk 0:01:06]}  Ra5 {[%clk 0:01:32]} 29. Qe3 {[%clk 0:01:06]}  f5 {[%clk 0:01:26]} 30. a3 {[%clk 0:00:59]}  h6 {[%clk 0:01:11]} 31. c6 {[%clk 0:00:58]}  Qd6 {[%clk 0:01:07]} 32. c7 {[%clk 0:00:53]}  Rc8 {[%clk 0:01:07]} 33. Qf4 {[%clk 0:00:49]}  Qxf4 {[%clk 0:00:56]} 34. gxf4 {[%clk 0:00:50]}  Rxa3 {[%clk 0:00:46]} 35. Rfd1 {[%clk 0:00:47]}  g6 {[%clk 0:00:43]} 36. Bxe4 {[%clk 0:00:44]}  fxe4 {[%clk 0:00:42]} 37. f5 {[%clk 0:00:42]}  Rd3 {[%clk 0:00:34]} 38. Nxe6 {[%clk 0:00:31]}  Bxe6 {[%clk 0:00:06]} 39. fxe6 {[%clk 0:00:32]}  Kf8 {[%clk 0:00:03]} 40. Rxd3 {[%clk 0:00:27]}  exd3 {[%clk 0:00:04]} 41. Rd1 {[%clk 0:00:27]}  Rxc7 {[%clk 0:00:04]} 42. Rxd3 {[%clk 0:00:27]}  Rc6 {[%clk 0:00:05]} 43. Rh3 {[%clk 0:00:20]}  h5 {[%clk 0:00:05]} 44. Ra3 {[%clk 0:00:19]}  Rxe6 {[%clk 0:00:05]} 45. h4 {[%clk 0:00:10]}  Ke7 {[%clk 0:00:06]} 46. Kg2 {[%clk 0:00:09]}  Kf6 {[%clk 0:00:07]} 47. Kg3 {[%clk 0:00:09]}  Rc6 {[%clk 0:00:05]} 48. Rf3+ {[%clk 0:00:09]}  Kg7 {[%clk 0:00:06]} 49. Rd3 {[%clk 0:00:10]}  Rd6 {[%clk 0:00:01]} 50. Rxd6 {[%clk 0:00:09]}  a5 {[%clk 0:00:01]} 51. Ra6 {[%clk 0:00:09]} 1-0


[Site "https://www.chess.com"]